bitfinex-derivatives/quotes_BTCF0:USTF0_20251108
["timestamp","ask_amount","ask_price","bid_price","bid_amount"]
[1762627007068,0.00014702,101960.0,101950.0,0.66462304]
[1762627007268,0.00114702,101960.0,101950.0,0.66462304]
[1762627008771,0.00114702,101960.0,101950.0,0.66462182]
[1762627012975,0.00114702,101960.0,101950.0,0.66462238]
[1762627013576,0.04395702,101960.0,101950.0,0.66462238]
[1762627015271,0.00114702,101960.0,101950.0,0.66462238]
[1762627017669,0.02247702,101960.0,101950.0,0.66462238]
[1762627019271,0.17558957,101960.0,101950.0,0.54656983]
[1762627019476,0.04367702,101960.0,101950.0,0.66462238]
[1762627022374,0.05753702,101960.0,101950.0,0.54657023]
[1762627022575,0.63458859,101960.0,101950.0,0.07424233]
[1762627022777,0.53648039,101960.0,101950.0,0.1459879]
[1762627022970,0.41833702,101960.0,101950.0,0.1459879]
[1762627023281,0.00114702,101960.0,101950.0,0.6646736]
[1762627024384,0.02254702,101960.0,101950.0,0.6646736]
[1762627024979,0.04374702,101960.0,101950.0,0.54653023]
[1762627025189,0.04374702,101960.0,101950.0,0.18573023]
[1762627027285,0.04374702,101960.0,101950.0,0.18575857]
[1762627027485,0.00114702,101960.0,101950.0,0.30390194]
[1762627027787,0.00114702,101960.0,101950.0,0.18575857]
[1762627029385,0.00114702,101960.0,101950.0,0.30390194]
[1762627031381,0.00114702,101960.0,101950.0,0.33901839]
[1762627032384,0.00114702,101960.0,101950.0,0.69981839]
[1762627032986,0.00114702,101960.0,101950.0,0.58167502]
[1762627033288,0.00114702,101960.0,101950.0,0.69981839]
[1762627034188,0.02254702,101960.0,101950.0,0.69981839]
[1762627037293,0.02254702,101960.0,101950.0,0.67341772]
[1762627039988,0.02254702,101960.0,101950.0,0.69985326]
[1762627040297,0.02254702,101960.0,101950.0,0.67341772]
[1762627040497,0.02254702,101960.0,101950.0,0.69985372]
[1762627040795,0.00114702,101960.0,101950.0,0.69985372]
[1762627041295,0.00114702,101960.0,101950.0,0.67341772]
[1762627042101,0.02254702,101960.0,101950.0,0.67341772]
[1762627044197,0.00114702,101960.0,101950.0,0.67341772]
[1762627045996,0.00114702,101960.0,101950.0,0.91861772]
[1762627046190,0.41367575,101980.0,101950.0,0.91861772]
[1762627046191,0.03520873,101980.0,101960.0,0.1538586]
[1762627046496,0.43858873,101990.0,101980.0,0.1538394]
[1762627046689,0.43858873,101990.0,101980.0,0.27198277]
[1762627047190,0.07778873,101990.0,101980.0,0.29840291]
[1762627047389,0.04258,101990.0,101980.0,0.27198277]
[1762627047592,0.04458,101990.0,101980.0,0.27298277]
[1762627048300,0.04658,101990.0,101980.0,0.27398277]
[1762627048994,0.004,101990.0,101980.0,0.69642977]
[1762627049496,0.004,101990.0,101980.0,0.67000963]
[1762627049800,0.00014702,102000.0,101990.0,0.1538298]
[1762627050004,0.00014702,102000.0,101990.0,0.65912535]
[1762627050896,0.02161702,102000.0,101990.0,0.63277317]
[1762627051105,0.04572702,102000.0,101990.0,0.63377317]
[1762627051605,0.00314702,102000.0,101990.0,0.63377317]
[1762627052202,0.00614702,102000.0,101990.0,0.63477317]
[1762627053201,0.04872702,102000.0,101990.0,0.63477317]
[1762627056102,0.04872702,102000.0,101990.0,0.5166298]
[1762627057205,0.04872702,102000.0,101990.0,0.63477317]
[1762627057704,0.04872702,102000.0,101990.0,0.5166298]
[1762627058003,0.00614702,102000.0,101990.0,0.63477317]
[1762627058898,0.40338,102020.0,102010.0,0.1538105]
[1762627059403,0.55008429,102020.0,102010.0,0.1538105]
[1762627061390,0.40538,102020.0,102010.0,0.27195387]
[1762627061592,0.40838,102020.0,102010.0,0.27195387]
[1762627061811,0.40838,102020.0,102010.0,0.1538105]
[1762627062102,0.40838,102020.0,102010.0,0.27195387]
[1762627062303,0.04758,102020.0,102010.0,0.27195387]
[1762627063301,0.02647,102020.0,102010.0,0.27195387]
[1762627063501,0.04809,102020.0,102010.0,0.27195387]
[1762627067507,0.04809,102020.0,102010.0,0.63275387]
[1762627068302,0.005,102020.0,102010.0,0.63275387]
[1762627068702,0.02715,102020.0,102010.0,0.63275387]
[1762627068912,0.04877,102020.0,102010.0,0.63275387]
[1762627069108,0.04877,102020.0,102010.0,0.7123148]
[1762627072017,0.005,102020.0,102010.0,0.7123148]
[1762627073310,0.003,102020.0,102010.0,0.73962333]
[1762627074007,0.40471702,102030.0,102020.0,0.1555111]
[1762627074201,0.40471702,102030.0,102020.0,0.27365447]
[1762627075212,0.40571702,102030.0,102020.0,0.27365447]
[1762627075712,0.40671702,102030.0,102020.0,0.27365447]
[1762627076508,0.04591702,102030.0,102020.0,0.27365447]
[1762627079817,0.04591702,102030.0,102020.0,0.63445447]
[1762627080010,0.04591702,102030.0,102020.0,0.660763]
[1762627080205,0.00214702,102030.0,102020.0,0.660763]
[1762627080410,0.00214702,102030.0,102020.0,1.209963]
[1762627081213,0.02397702,102030.0,102020.0,1.209963]
[1762627081619,0.04700702,102030.0,102020.0,0.73101963]
[1762627081822,0.04700702,102030.0,102020.0,0.849163]
[1762627083626,0.05986702,102030.0,102020.0,0.849163]
[1762627084327,0.05986702,102030.0,102020.0,0.8489935]
[1762627084712,0.04700702,102030.0,102020.0,0.8489935]
[1762627085114,0.00214702,102030.0,102020.0,0.96696737]
[1762627085320,0.04700702,102030.0,102020.0,0.96696737]
[1762627086827,0.04700702,102030.0,102020.0,1.32776737]
[1762627087525,0.00214702,102030.0,102020.0,1.32776737]
[1762627088422,0.00214702,102030.0,102020.0,1.36299423]
[1762627094630,0.00214702,102030.0,102020.0,1.4809681]
[1762627094831,0.00214702,102030.0,102020.0,1.50749895]
[1762627095031,0.44086873,102050.0,102040.0,0.1556019]
[1762627095331,0.44086873,102050.0,102040.0,0.77869052]
[1762627095332,0.04486,102050.0,102040.0,0.77869052]
[1762627095734,0.02183,102050.0,102040.0,0.77869052]
[1762627096128,0.04486,102050.0,102040.0,0.77869052]
[1762627096426,0.04486,102050.0,102040.0,0.77969052]
[1762627096623,0.04786,102050.0,102040.0,0.78069052]
[1762627098031,0.04486,102050.0,102040.0,0.77969052]
[1762627098339,0.04486,102050.0,102040.0,0.78069052]
[1762627098843,0.04486,102050.0,102040.0,0.75434964]
[1762627100739,0.04486,102050.0,102040.0,0.78069052]
[1762627101239,0.04486,102050.0,102040.0,0.66271665]
[1762627101638,0.04486,102050.0,102040.0,0.30191665]
[1762627101835,0.41852,102050.0,102040.0,0.26356577]
[1762627102933,0.41852,102050.0,102040.0,0.27114577]
[1762627103637,0.05772,102050.0,102040.0,0.27114577]
[1762627103935,0.04486,102050.0,102040.0,0.27114577]
[1762627106342,0.04486,102050.0,102040.0,0.29748665]
[1762627107544,0.04486,102050.0,102040.0,0.27114577]
[1762627108344,0.04486,102050.0,102040.0,0.29748665]
[1762627111940,0.04486,102050.0,102040.0,0.27114577]
[1762627115449,0.04486,102050.0,102040.0,0.29748665]
[1762627115746,0.04486,102050.0,102040.0,0.41546052]
[1762627116549,0.44148575,102060.0,102050.0,0.1556123]
[1762627116851,0.44148575,102060.0,102050.0,0.27358617]
[1762627117548,0.40627702,102060.0,102050.0,0.27358617]
[1762627117743,0.40727702,102060.0,102050.0,0.27358617]
[1762627118655,0.42037702,102060.0,102050.0,0.1556123]
[1762627118861,0.42037702,102060.0,102050.0,0.27358617]
[1762627120451,0.40727702,102060.0,102050.0,0.29992705]
[1762627121453,0.40627702,102060.0,102050.0,0.29992705]
[1762627121646,0.40627702,102060.0,102050.0,0.30192705]
[1762627122144,0.04547702,102060.0,102050.0,0.30192705]
[1762627122451,0.40627702,102060.0,102050.0,0.30192705]
[1762627122751,0.40627702,102060.0,102050.0,0.37952022]
[1762627126049,0.00014702,102060.0,102050.0,0.86707438]
[1762627126246,0.45347873,102080.0,102070.0,0.1555739]
[1762627126553,0.05747,102080.0,102070.0,0.27354777]
[1762627126945,0.45347873,102090.0,102080.0,0.1540043]
[1762627127154,0.45347873,102090.0,102080.0,0.27197817]
[1762627127749,0.41827,102090.0,102080.0,0.27197817]
[1762627128355,0.42127,102090.0,102080.0,0.27197817]
[1762627129351,0.42427,102090.0,102080.0,0.27297817]
[1762627129654,0.06347,102090.0,102080.0,0.27297817]
[1762627130056,0.006,102090.0,102080.0,0.77810068]
[1762627130559,0.02778,102090.0,102080.0,0.77810068]
[1762627131050,0.006,102090.0,102080.0,0.75175204]
[1762627131252,0.003,102090.0,102080.0,0.75175204]
[1762627131451,0.003,102090.0,102080.0,0.75275204]
[1762627132258,0.41865702,102100.0,102090.0,0.1495447]
[1762627132555,0.41865702,102100.0,102090.0,0.26751857]
[1762627133650,0.41965702,102100.0,102090.0,0.26751857]
[1762627137250,0.40655702,102100.0,102090.0,0.38549244]
[1762627137461,0.40655702,102100.0,102090.0,0.62831857]
[1762627137462,0.04575702,102100.0,102090.0,0.62831857]
[1762627141560,0.04575702,102100.0,102090.0,0.70840493]
[1762627143356,0.00114702,102100.0,102090.0,0.70840493]
[1762627143864,0.00114702,102100.0,102090.0,0.8263788]
[1762627144062,0.00114702,102100.0,102090.0,0.85272744]
[1762627144463,0.00114702,102100.0,102090.0,0.7345639]
[1762627144860,0.00114702,102100.0,102090.0,0.8523481]
[1762627145060,0.00114702,102100.0,102090.0,0.82599946]
[1762627150663,0.00114702,102100.0,102090.0,0.82799946]
[1762627151257,0.00014702,102100.0,102090.0,0.82799946]
[1762627151557,0.4187,102120.0,102110.0,0.1421755]
[1762627152466,0.1550656,102110.0,102100.0,0.04435702]
[1762627152666,0.6336498,102110.0,102100.0,0.00014702]
[1762627152865,0.5158656,102110.0,102100.0,0.00014702]
[1762627153071,0.55107433,102110.0,102100.0,0.02241702]
[1762627153561,0.0571,102110.0,102100.0,0.27332632]
[1762627153764,0.04431,102110.0,102100.0,0.63412632]
[1762627154064,0.4197,102120.0,102110.0,0.1553855]
[1762627154463,0.4187,102120.0,102110.0,0.2731697]
[1762627155372,0.4197,102120.0,102110.0,0.2731697]
[1762627156166,0.45490873,102120.0,102110.0,0.2731697]
[1762627156370,0.4197,102120.0,102110.0,0.2731697]
[1762627156568,0.04531,102120.0,102110.0,0.2731697]
[1762627157172,0.04531,102120.0,102110.0,0.6339697]
[1762627161176,0.001,102120.0,102110.0,0.66031834]
[1762627161777,0.0239,102120.0,102110.0,0.66031834]
[1762627164874,0.001,102120.0,102110.0,0.66031834]
[1762627165272,0.0239,102120.0,102110.0,0.66031834]
[1762627165577,0.04531,102120.0,102110.0,0.66031834]
[1762627165766,0.001,102120.0,102110.0,0.66909087]
[1762627166977,0.001,102120.0,102110.0,0.72193025]
[1762627171175,0.05737,102120.0,102110.0,0.85693087]
[1762627171369,0.05737,102120.0,102110.0,0.84808661]
[1762627171784,0.001,102120.0,102110.0,1.1826097]
[1762627171979,0.001,102120.0,102110.0,1.21773087]
[1762627174777,0.00014702,102130.0,102120.0,0.156166]
[1762627174978,0.05597,102150.0,102140.0,0.1435568]
[1762627175170,0.41677,102150.0,102140.0,0.1435568]
[1762627175367,0.56348765,102150.0,102140.0,0.1435568]
[1762627177272,0.56548765,102150.0,102140.0,0.1435568]
[1762627177479,0.56748765,102150.0,102140.0,0.1435568]
[1762627179682,0.56748765,102150.0,102140.0,0.0979368]
[1762627179869,0.56748765,102150.0,102140.0,0.1435568]
[1762627180670,0.72048058,102150.0,102130.0,0.12436311]
[1762627180875,0.78320745,102150.0,102140.0,0.0629368]
[1762627181075,1.14400745,102150.0,102140.0,0.0629368]
[1762627181276,0.92828765,102150.0,102140.0,0.1085568]
[1762627181486,0.92828765,102150.0,102140.0,0.14827979]
[1762627181679,0.92828765,102150.0,102140.0,0.1085568]
[1762627182974,0.92628765,102150.0,102140.0,0.1085568]
[1762627183175,0.92728765,102150.0,102140.0,0.1085568]
[1762627183378,0.96249638,102150.0,102140.0,0.1220068]
[1762627183683,0.91449765,102150.0,102140.0,0.1220068]
[1762627183885,0.91349765,102150.0,102140.0,0.1220068]
[1762627184086,0.91549765,102150.0,102140.0,0.1220068]
[1762627184477,0.92828765,102150.0,102140.0,0.1220068]
[1762627184980,0.91549765,102150.0,102140.0,0.1220068]
[1762627185784,0.92828765,102150.0,102140.0,0.1220068]
[1762627186683,0.92828765,102150.0,102140.0,0.14827979]
[1762627187475,1.02621485,102150.0,102140.0,0.11248979]
[1762627187676,0.92828765,102150.0,102140.0,0.1086868]
[1762627187881,1.02621485,102150.0,102140.0,0.1086868]
[1762627188280,0.92828765,102150.0,102140.0,0.1086868]
[1762627188475,0.91549765,102150.0,102140.0,0.26633399]
[1762627193386,0.91549765,102150.0,102140.0,0.240061]
[1762627194190,0.91549765,102150.0,102140.0,0.26638492]
[1762627195590,0.40798,102150.0,102140.0,0.26638492]
[1762627195784,0.04718,102150.0,102140.0,0.27509166]
[1762627196291,0.04718,102150.0,102140.0,0.63589166]
[1762627198886,0.04813,102150.0,102140.0,0.63589166]
[1762627199686,0.02649,102150.0,102140.0,0.63589166]
[1762627199892,0.004,102150.0,102140.0,0.65370038]
[1762627200493,0.02649,102150.0,102140.0,0.65370038]
[1762627201093,0.04928,102150.0,102140.0,0.57097712]
[1762627201287,0.04928,102150.0,102140.0,0.27512194]
[1762627201596,0.04828,102150.0,102140.0,0.27512194]
[1762627201789,0.04628,102150.0,102140.0,0.27512194]
[1762627203387,0.41987,102150.0,102140.0,0.1436869]
[1762627204286,0.41987,102150.0,102140.0,0.26140297]
[1762627204691,0.5661383,102150.0,102140.0,0.26140297]
[1762627204885,0.5661383,102150.0,102140.0,0.1436869]
[1762627205087,0.5661383,102150.0,102140.0,0.26140297]
[1762627206395,0.78178167,102150.0,102130.0,0.23799815]
[1762627206691,0.41317,102140.0,102130.0,0.12439415]
[1762627206895,0.41317,102140.0,102130.0,0.14541415]
[1762627207095,0.55977888,102140.0,102130.0,0.14541415]
[1762627207294,0.55977888,102140.0,102130.0,0.11911012]
[1762627207490,0.55977888,102140.0,102130.0,0.23682619]
[1762627207795,0.59498761,102140.0,102130.0,0.23682619]
[1762627207998,0.59498761,102140.0,102130.0,0.12011012]
[1762627208198,0.59498761,102140.0,102130.0,0.12111012]
[1762627208394,0.55268888,102140.0,102130.0,0.30059022]
[1762627208597,0.55268888,102140.0,102130.0,0.27328619]
[1762627208795,0.55268888,102140.0,102130.0,0.27428619]
[1762627209888,0.55977888,102140.0,102130.0,0.30059934]
[1762627210596,0.55268888,102140.0,102130.0,0.30059934]
[1762627211595,0.55977888,102140.0,102130.0,0.30059934]
[1762627211989,0.55977888,102140.0,102130.0,0.27428619]
[1762627213498,0.55977888,102140.0,102130.0,0.30059934]
[1762627215495,0.55977888,102140.0,102130.0,0.27428619]
[1762627220100,0.65771568,102140.0,102130.0,0.27428619]
[1762627220406,0.81064048,102140.0,102130.0,0.10009342]
[1762627220592,0.81064048,102140.0,102130.0,0.00214702]
[1762627220797,0.92835655,102140.0,102130.0,0.00214702]
[1762627221006,0.1542664,102130.0,102120.0,0.0979503]
[1762627221305,0.7796601,102130.0,102120.0,0.1189703]
[1762627221505,0.7796601,102130.0,102120.0,0.1406603]
[1762627221705,0.66194403,102130.0,102120.0,0.1406603]
[1762627222406,0.66194403,102130.0,102120.0,0.1416603]
[1762627222704,0.66194403,102130.0,102120.0,0.1426603]
[1762627223307,0.66194403,102130.0,102120.0,0.1209703]
[1762627223509,0.66194403,102130.0,102120.0,0.23868637]
[1762627224006,0.7796601,102130.0,102120.0,0.0999503]
[1762627225504,0.7796601,102130.0,102120.0,0.1209703]
[1762627226003,0.6817137,102130.0,102120.0,0.1209703]
[1762627226208,0.56399763,102130.0,102120.0,0.27464637]
[1762627226409,0.55295763,102130.0,102120.0,0.39236244]
[1762627226708,0.19215763,102130.0,102120.0,0.39236244]
[1762627226899,0.19215763,102130.0,102120.0,0.41867559]
[1762627230807,0.55295763,102130.0,102120.0,0.18324345]
[1762627231013,0.55295763,102130.0,102120.0,0.30095952]
[1762627231209,0.65090403,102130.0,102120.0,0.30095952]
[1762627232015,0.55295763,102130.0,102120.0,0.30095952]
[1762627232614,0.65090403,102130.0,102120.0,0.30095952]
[1762627232804,0.55295763,102130.0,102120.0,0.30095952]
[1762627233416,0.55295763,102130.0,102120.0,0.27464637]
[1762627234114,0.65090403,102130.0,102120.0,0.27464637]
[1762627234306,0.55295763,102130.0,102120.0,0.27464637]
[1762627235100,0.56399763,102130.0,102120.0,0.04605]
[1762627235308,0.56399763,102130.0,102120.0,0.27465217]
[1762627235809,0.55295763,102130.0,102120.0,0.27465217]
[1762627238924,0.55295763,102130.0,102120.0,0.39236824]
[1762627239621,0.55295763,102130.0,102120.0,0.27465217]
[1762627241018,0.55295763,102130.0,102120.0,0.41868139]
[1762627241611,0.55295763,102130.0,102120.0,0.39236824]
[1762627241811,0.55295763,102130.0,102120.0,0.27465217]
[1762627243322,0.55295763,102130.0,102120.0,0.30096532]
[1762627245819,0.66194513,102130.0,102120.0,0.30096632]
[1762627246019,0.66194513,102130.0,102120.0,0.27465317]
[1762627247224,0.69715386,102130.0,102120.0,0.27465317]
[1762627247420,0.66194513,102130.0,102120.0,0.27465317]
[1762627247621,0.66194513,102130.0,102120.0,0.26172317]
[1762627248318,0.81486993,102130.0,102120.0,0.0999571]
[1762627248524,0.7796612,102130.0,102120.0,0.12627025]
[1762627248910,0.7796612,102130.0,102120.0,0.26625632]
[1762627249317,0.7796612,102130.0,102120.0,0.28743632]
[1762627249822,0.7796612,102130.0,102120.0,0.16972025]
[1762627250025,0.7796612,102130.0,102120.0,0.28743632]
[1762627251022,0.81486993,102130.0,102120.0,0.16972025]
[1762627251324,0.81487003,102130.0,102120.0,0.16972025]
[1762627251719,0.81487003,102130.0,102120.0,0.28743632]
[1762627252817,0.81487003,102130.0,102120.0,0.16972025]
[1762627253119,0.81487003,102130.0,102120.0,0.12627025]
[1762627253328,0.83253705,102130.0,102120.0,0.0999571]
[1762627255325,0.83253705,102130.0,102120.0,0.0989571]
[1762627255531,0.86877839,102130.0,102120.0,0.0989571]
[1762627255929,0.86877839,102130.0,102120.0,0.1202271]
[1762627256123,0.86977839,102130.0,102120.0,0.1202271]
[1762627257333,0.86977839,102130.0,102120.0,0.1415471]
[1762627259428,0.1562872,102120.0,102110.0,0.28465384]
[1762627259727,0.78211515,102120.0,102110.0,0.25834069]
[1762627260133,0.66439908,102120.0,102110.0,0.25834069]
[1762627260330,0.81735649,102120.0,102110.0,0.25834069]
[1762627260529,0.81735649,102120.0,102110.0,0.14162462]
[1762627260731,0.81735649,102120.0,102110.0,0.10011372]
[1762627260938,0.95270697,102120.0,102110.0,0.10011362]
[1762627261734,0.8349909,102120.0,102110.0,0.10011362]
[1762627261935,0.58847412,102120.0,102110.0,0.27351969]
[1762627262335,0.55325188,102120.0,102110.0,0.27151969]
[1762627262538,0.55525188,102120.0,102110.0,0.27151969]
[1762627264942,0.55525188,102120.0,102110.0,0.41554891]
[1762627264943,0.40794,102120.0,102110.0,0.41554891]
[1762627265437,0.04714,102120.0,102110.0,0.41554891]
[1762627266231,0.04714,102120.0,102110.0,0.29783284]
[1762627266434,0.04714,102120.0,102110.0,0.29787021]
[1762627268232,0.04714,102120.0,102110.0,0.33293115]
[1762627268841,0.04714,102120.0,102110.0,0.29787021]
[1762627269247,0.002,102120.0,102110.0,0.29787021]
[1762627269645,0.0247,102120.0,102110.0,0.29787021]
[1762627269946,0.04714,102120.0,102110.0,0.29787021]
[1762627275143,0.04714,102120.0,102110.0,0.33293115]
[1762627275344,0.04714,102120.0,102110.0,0.69373115]
[1762627278242,0.002,102120.0,102110.0,0.69373115]
[1762627278646,0.002,102120.0,102110.0,0.667418]
[1762627281145,0.001,102120.0,102110.0,0.669418]
[1762627281347,0.40594,102130.0,102120.0,0.05569]
[1762627281650,0.40594,102130.0,102120.0,0.29772885]
[1762627282553,0.40594,102130.0,102120.0,0.29972885]
[1762627282850,0.04514,102130.0,102120.0,0.27340044]
[1762627283851,0.04514,102130.0,102120.0,0.29972885]
[1762627284452,0.04514,102130.0,102120.0,0.27340044]
[1762627285558,0.04514,102130.0,102120.0,0.29972885]
[1762627288858,0.40594,102130.0,102120.0,0.29972885]
[1762627289560,0.40594,102130.0,102120.0,0.155647]
[1762627290759,0.40594,102130.0,102120.0,0.27340044]
[1762627291561,0.41913,102130.0,102120.0,0.142477]
[1762627291948,0.81666047,102130.0,102120.0,0.0232]
[1762627292154,0.83431398,102130.0,102120.0,0.002]
[1762627292353,0.83431398,102130.0,102120.0,0.099957]
[1762627292559,0.83431398,102130.0,102120.0,0.123077]
[1762627292760,0.71656054,102130.0,102120.0,0.123077]
[1762627293059,0.71656054,102130.0,102120.0,0.099957]
[1762627293254,0.83431398,102130.0,102120.0,0.002]
[1762627293856,0.83531398,102130.0,102120.0,0.001]
[1762627294161,1.45304738,102130.0,102120.0,0.001]
[1762627294366,0.153737,102120.0,102110.0,0.09810662]
[1762627294560,0.68513241,102120.0,102110.0,0.09810662]
[1762627294755,0.83217768,102120.0,102110.0,0.12122662]
[1762627295150,0.86740566,102120.0,102110.0,0.14285662]
[1762627295563,0.86740566,102120.0,102110.0,0.12322662]
[1762627295761,0.74965222,102120.0,102110.0,0.12322662]
[1762627298359,0.81456369,102120.0,102110.0,0.10010662]
[1762627299365,0.81556369,102120.0,102110.0,0.09910662]
[1762627300069,0.81656369,102120.0,102110.0,0.09810662]
[1762627301870,0.81656369,102120.0,102110.0,0.00014702]
[1762627302472,0.86940566,102120.0,102110.0,0.00014702]
[1762627302684,0.83417768,102120.0,102110.0,0.00014702]
[1762627302872,0.86935523,102120.0,102110.0,0.00014702]
[1762627303474,0.86935523,102120.0,102110.0,0.09811362]
[1762627304666,0.86935523,102120.0,102110.0,0.00014702]
[1762627308176,0.86935523,102120.0,102110.0,0.09811362]
[1762627308482,0.81651326,102120.0,102110.0,0.09811362]
[1762627309076,1.17731326,102120.0,102110.0,0.09811362]
[1762627309385,1.05955982,102120.0,102110.0,0.14412362]
[1762627309673,0.95156282,102120.0,102110.0,0.27542706]
[1762627310065,0.91638527,102120.0,102110.0,0.27542706]
[1762627311168,0.19478527,102120.0,102110.0,0.27542706]
[1762627311875,0.55558527,102120.0,102110.0,0.27542706]
[1762627314074,0.55558527,102120.0,102110.0,0.15767362]
[1762627314867,0.65354227,102120.0,102110.0,0.15767362]
[1762627315072,0.66663227,102120.0,102110.0,0.14412362]
[1762627316669,0.66663227,102120.0,102110.0,0.04615702]
[1762627316874,0.70180982,102120.0,102110.0,0.04615702]
[1762627317075,0.81956326,102120.0,102110.0,0.09811362]
[1762627317274,0.70180982,102120.0,102110.0,0.14351362]
[1762627319379,0.75465179,102120.0,102110.0,0.14351362]
[1762627319780,0.75465179,102120.0,102110.0,0.09811362]
[1762627320479,0.75465179,102120.0,102110.0,0.12124362]
[1762627321279,0.75465179,102120.0,102110.0,0.14351362]
[1762627321580,0.64360479,102120.0,102110.0,0.15745362]
[1762627322178,0.75465179,102120.0,102110.0,0.15745362]
[1762627322976,0.75465179,102120.0,102110.0,0.14351362]
[1762627326391,0.81960145,102120.0,102110.0,0.14351362]
[1762627326585,0.81960145,102120.0,102110.0,0.04554702]
[1762627326791,0.81960145,102120.0,102110.0,0.00014702]
[1762627327182,0.81960145,102120.0,102110.0,0.09811362]
[1762627327393,0.81960145,102120.0,102110.0,0.12124362]
[1762627327788,0.81960145,102120.0,102110.0,0.00014702]
[1762627328190,0.81960145,102120.0,102110.0,0.09811352]
[1762627328592,0.81960145,102120.0,102110.0,0.12124352]
[1762627329793,0.81960145,102120.0,102110.0,0.14351352]
[1762627331288,0.81960145,102120.0,102110.0,0.04554702]
[1762627331596,0.99023505,102120.0,102110.0,0.14351362]
[1762627332093,0.87244342,102120.0,102110.0,0.14351362]
[1762627333595,0.83726587,102120.0,102110.0,0.14351362]
[1762627334794,0.9550575,102120.0,102110.0,0.14351362]
[1762627335093,1.3158575,102120.0,102110.0,0.14351362]
[1762627335287,1.3158575,102120.0,102110.0,0.02327702]
[1762627335496,1.3158575,102120.0,102110.0,0.00014702]
[1762627335792,1.3158575,102120.0,102110.0,0.12124362]
[1762627336386,1.3158575,102120.0,102110.0,0.14351362]
[1762627336588,1.08027424,102120.0,102110.0,0.15745362]
[1762627336794,1.19806587,102120.0,102110.0,0.15745362]
[1762627337593,1.08027424,102120.0,102110.0,0.15745362]
[1762627337794,1.19806587,102120.0,102110.0,0.15745362]
[1762627338795,1.19806587,102120.0,102110.0,0.00014702]
[1762627338994,1.29825165,102120.0,102110.0,0.00014702]
[1762627339688,1.29825165,102120.0,102110.0,0.02327702]
[1762627340507,1.41604328,102120.0,102110.0,0.00014702]
[1762627340712,0.1482762,102100.0,102090.0,0.1571545]
[1762627340913,1.02290987,102100.0,102090.0,0.1571545]
[1762627341114,1.16885163,102100.0,102090.0,0.1571545]
[1762627342013,1.16191163,102100.0,102090.0,0.27694613]
[1762627342208,1.16191163,102100.0,102090.0,0.27894613]
[1762627342910,1.04412,102100.0,102090.0,0.27894613]
[1762627343113,1.04412,102100.0,102090.0,0.27694613]
[1762627343314,1.04412,102100.0,102090.0,0.27794613]
[1762627344017,1.13360959,102100.0,102090.0,0.18649982]
[1762627344320,1.16885163,102100.0,102090.0,0.27694743]
[1762627344508,1.16885163,102100.0,102090.0,0.0474]
[1762627345107,1.16885163,102100.0,102090.0,0.1453858]
[1762627348210,1.28664326,102100.0,102090.0,0.002]
[1762627348515,1.33950633,102100.0,102090.0,0.002]
[1762627349304,1.34050633,102100.0,102090.0,0.001]
[1762627350219,0.1529258,102090.0,102080.0,0.09814242]
[1762627350517,0.86551087,102090.0,102080.0,0.00014702]
[1762627351616,0.86551087,102090.0,102080.0,0.09914242]
[1762627351819,0.8126952,102090.0,102080.0,0.00214702]
[1762627352622,0.8126952,102090.0,102080.0,0.10014242]
[1762627354216,0.8126952,102090.0,102080.0,0.00214702]
[1762627354415,0.86551087,102090.0,102080.0,0.00214702]
[1762627355318,0.1537254,102080.0,102070.0,0.00010412]
[1762627355519,0.83804377,102080.0,102070.0,0.09810912]
[1762627355718,0.98464316,102080.0,102070.0,0.09810912]
[1762627356020,0.98464316,102080.0,102070.0,0.00010412]
[1762627356219,0.93188209,102080.0,102070.0,0.00010412]
[1762627356927,0.93188209,102080.0,102070.0,0.00210412]
[1762627357130,0.93188209,102080.0,102070.0,0.10010902]
[1762627357821,0.93188209,102080.0,102070.0,0.00410412]
[1762627361812,0.93188209,102080.0,102070.0,0.10210902]
[1762627362218,0.93188209,102080.0,102070.0,0.12445902]
[1762627362520,0.89670805,102080.0,102070.0,0.00410412]
[1762627364033,0.89670805,102080.0,102070.0,0.10210912]
[1762627365232,0.89670805,102080.0,102070.0,0.12445912]
[1762627365418,0.89670805,102080.0,102070.0,0.00410412]
[1762627365621,0.89670805,102080.0,102070.0,0.10210902]
[1762627366232,0.89670805,102080.0,102070.0,0.12323902]
[1762627366830,0.89670805,102080.0,102070.0,0.14623902]
[1762627368433,0.93188209,102080.0,102070.0,0.14623902]
[1762627369132,0.98464316,102080.0,102070.0,0.14623902]
[1762627371128,0.94946912,102080.0,102070.0,0.14623902]
[1762627371834,0.93186553,102080.0,102070.0,0.14623902]
[1762627372534,0.93186553,102080.0,102070.0,0.15983902]
[1762627372535,0.8140739,102080.0,102070.0,0.15983902]
[1762627374230,0.93186553,102080.0,102070.0,0.15983902]
[1762627374429,0.8140739,102080.0,102070.0,0.15983902]
[1762627374936,0.93186553,102080.0,102070.0,0.15983902]
[1762627375138,0.8140739,102080.0,102070.0,0.15983902]
[1762627377127,0.83167749,102080.0,102070.0,0.15983902]
[1762627378837,0.82073749,102080.0,102070.0,0.15983902]
[1762627379338,0.85596291,102080.0,102070.0,0.15983902]
[1762627381142,0.82073749,102080.0,102070.0,0.15983902]
[1762627381549,0.64019218,102080.0,102070.0,0.27763065]
[1762627381729,0.58743111,102080.0,102070.0,0.27763065]
[1762627381934,0.44083172,102080.0,102070.0,0.27763065]
[1762627382627,0.39604172,102080.0,102070.0,0.27763065]
[1762627383137,0.43835172,102080.0,102070.0,0.27763065]
[1762627383534,0.02114,102080.0,102070.0,0.30397467]
[1762627386438,0.39618874,102090.0,102070.0,0.30397467]
[1762627386641,0.39618874,102090.0,102080.0,0.39067856]
[1762627386842,0.36094702,102090.0,102080.0,0.39067856]
[1762627387235,0.00014702,102090.0,102080.0,0.39067856]
[1762627388341,0.00014702,102090.0,102080.0,0.27292289]
[1762627388537,0.40325702,102090.0,102080.0,0.0571]
[1762627388738,0.1403053,102080.0,102070.0,0.15726732]
[1762627388954,0.40311,102080.0,102070.0,0.15726732]
[1762627389137,0.04231,102080.0,102070.0,0.27309491]
[1762627389341,0.40311,102080.0,102070.0,0.15526732]
[1762627389731,0.40311,102080.0,102070.0,0.15626732]
[1762627390647,0.40311,102080.0,102070.0,0.15826732]
[1762627397953,0.40311,102080.0,102070.0,0.27609491]
[1762627399754,0.04231,102080.0,102070.0,0.27609491]
[1762627399955,0.02114,102080.0,102070.0,0.27609491]
[1762627400759,0.40325702,102090.0,102080.0,0.1550953]
[1762627400948,0.40325702,102090.0,102080.0,0.27292289]
[1762627401250,0.5510768,102090.0,102080.0,0.27292289]
[1762627401456,0.5299068,102090.0,102080.0,0.27292289]
[1762627401753,0.5510768,102090.0,102080.0,0.27292289]
[1762627401957,0.5510768,102090.0,102080.0,0.27392289]
[1762627403746,0.40325702,102090.0,102080.0,0.27392289]
[1762627403961,0.38208702,102090.0,102080.0,0.27392289]
[1762627406261,0.38208702,102090.0,102080.0,0.35183036]